Workbook

Sheet 市级基金17年收入
A1: 附表2：
A2: 2017年市本级政府性基金收入预算调整表
B3: 单位：万元
A4: 项目 | B4: 预算数 | C4: 调整预算数 | D4: 比预算增减+-
A5: 一、新型墙体材料专项基金收入 | B5: 500 | C5: 500 | D5: =XFD5-XFD5 -> 0
A6: 二、国有土地使用权出让收入 | B6: =SUM(XFD7:XFD10) -> 82095 | C6: 62095 | D6: -20000
A7: 土地出让价款收入 | B7: 82095 | C7: 62095 | D7: -20000
A8: 补缴的土地价款 | C8: 0 | D8: 0
A9: 缴纳新增建设用地土地有偿使用费 | C9: 0 | D9: 0
A10: 其他土地出让收入 | C10: 0 | D10: 0
A11: 三、彩票公益金收入 | B11: 1248 | C11: 0 | D11: -1248
A12: 福利彩票公益金收入 | B12: 1040 | C12: 0 | D12: -1040
A13: 体育彩票公益金收入 | B13: 208 | C13: 0 | D13: -208
A14: 四、城市基础设施配套费收入 | B14: 1500 | C14: 1860 | D14: 360
A15: 五、污水处理费收入 | B15: 1900 | C15: 1900 | D15: 0
A16: 六、其他政府性基金收入 | D16: 0
D17: 0
A18: 收入合计 | B18: =XFD5+XFD6+XFD11+XFD14+XFD15+XFD16 -> 87243 | C18: 66355 | D18: -20888
A19: 转移性收入 | B19: =XFD20+XFD31+XFD35+XFD36 -> 3137 | C19: =XFD20+XFD31+XFD35+XFD36 -> 113417 | D19: 110280
A20: 一、政府性基金转移收入 | B20: =XFD21+XFD30 -> 0 | C20: 2370 | D20: 2370
A21: 政府性基金补助收入 | C21: 2370 | D21: 2370
A22: 大中型水库库区基金补助 | C22: 5 | D22: 5
A23: 车辆通行费安排的补助 | C23: 941 | D23: 941
A24: 地方旅游开发项目补助 | C24: 20 | D24: 20
A25: 社会福利的彩票公益金补助 | C25: 1025 | D25: 1025
A26: 体育事业的彩票公益金补助 | C26: 354 | D26: 354
A27: 红十字事业的彩票公益金补助 | C27: 7 | D27: 7
A28: 残疾人事业的彩票公益金补助 | C28: 2 | D28: 2
A29: 城乡医疗救助的彩票公益金补助 | C29: 16 | D29: 16
A30: 政府性基金上解收入 | D30: 0
A31: 二、 债务转贷收入 | C31: =XFD32 -> 95274 | D31: 95274
A32: 地方政府专项债务转贷收入 | C32: =SUM(XFD33:XFD34) -> 95274 | D32: =SUM(XFD33:XFD34) -> 95274
A33: 国有土地使用权出让金债务转贷收入 | C33: 88100 | D33: 88100
A34: 土地储备专项债券转贷收入 | C34: 7174 | D34: 7174
A35: 三、 上年结余收入 | B35: 3137 | C35: 15773 | D35: 12636
A36: 四、 调入资金 | D36: 0
A37: 收入总计 | B37: =XFD18+XFD19 -> 90380 | C37: =XFD18+XFD19 -> 179772 | D37: 89392
A38: —19—

Sheet 市级17年基金支出
A1: 附表2：
A2: 2017年市本级政府性基金支出预算调整表
B3: 单位：万元
A4: 项目 | B4: 预算数 | C4: 调整预算数 | D4: 比预算数增减+-
A5: 一、社会保障和就业支出 | B5: =XFD6 -> 0 | C5: =XFD5+XFD5 -> 5 | D5: =XFD6 -> 5
A6: 大中型水库移民后期扶持基金支出 | B6: 0 | C6: 5 | D6: 5
A7: 其他大中型水库移民后期扶持资金支出 | C7: 5 | D7: 5
A8: 二、城乡社区支出 | B8: =XFD9+XFD18+XFD22+XFD17 -> 82350 | C8: 117143 | D8: =XFD9+XFD18+XFD22+XFD17 -> 34793
A9: 国有土地使用权出让收入安排的支出 | B9: =SUM(XFD10:XFD16) -> 76741 | C9: 111174 | D9: =SUM(XFD10:XFD16) -> 34433
A10: 征地和拆迁补偿支出 | B10: 25832 | C10: 25006 | D10: -826
A11: 土地开发支出 | B11: 4131 | C11: 4131
A12: 城市建设支出 | B12: 33686 | C12: 21686 | D12: -12000
A13: 农村基础设施建设支出 | B13: 1000 | C13: 1000
A14: 廉租住房支出 | C14: 0
A15: 公共租赁住房支出 | B15: 2052 | C15: 2052
A16: 其他国有土地使用权出让收入安排的支出 | B16: 10040 | C16: 57299 | D16: 47259
A17: 新增建设用地有偿使用费安排的支出 | C17: 0
A18: 城市基础设施配套费安排的支出 | B18: =SUM(XFD19:XFD21) -> 3056 | C18: 3416 | D18: =SUM(XFD19:XFD21) -> 360
A19: 城市公共设施 | B19: 0 | C19: 0
A20: 城市环境卫生 | B20: 3056 | C20: 3056
A21: 其他城市基础设施配套费安排的支出 | B21: 0 | C21: 360 | D21: 360
A22: 污水处理费及对应专项债务收入安排的支出 | B22: =SUM(XFD23:XFD24) -> 2553 | C22: 2553 | D22: =SUM(XFD23:XFD24) -> 0
A23: 污水处理设施建设和运营 | B23: 2553 | C23: 2553
A24: 其他污水处理费安排的支出 | C24: 0
A25: 三、交通运输支出 | B25: =XFD26 -> 0 | C25: =#REF! -> 941 | D25: =#REF! -> 941
A26: 车辆通行费安排的支出 | B26: =#REF! -> 0 | C26: =#REF! -> 941 | D26: =#REF! -> 941
A27: 其他车辆通行费安排的支出 | C27: 941 | D27: 941
A28: 四、资源勘探信息等支出 | B28: 921 | C28: 921
A29: 新型墙体材料专项基金支出 | B29: 921 | C29: 921
A30: 技改贴息和补助 | B30: 230 | C30: 230
A31: 技术研发和推广 | B31: 110 | C31: 110
A32: 示范项目补贴 | B32: 300 | C32: 300
A33: 宣传和培训 | B33: 90 | C33: 90
A34: 其他新型墙体材料专项基金支出 | B34: 191 | C34: 191
A35: 五、商业服务业等支出 | B35: =#REF! -> 0 | C35: =#REF! -> 20 | D35: =#REF! -> 20
A36: 旅游发展基金支出 | B36: =#REF! -> 0 | C36: =#REF! -> 20 | D36: =#REF! -> 20
A37: 地方旅游开发项目补助 | C37: 20 | D37: 20
A38: 六、其他支出 | B38: 1680 | C38: 1680 | D38: =#REF! -> 0
A39: 彩票公益金安排的支出 | B39: 1680 | C39: 1680 | D39: =SUM(XFD40:XFD44) -> 0
A40: 用于社会福利的彩票公益金支出 | B40: 1340 | C40: 1315 | D40: -25
A41: 用于体育事业的彩票公益金支出 | B41: 340 | C41: 340
A42: 用于红十字事业的彩票公益金支出 | C42: 7 | D42: 7
A43: 用于残疾人事业的彩票公益金支出 | C43: 2 | D43: 2
A44: 用于城乡医疗求助的彩票公益金支出 | C44: 16 | D44: 16
A45: 支出合计 | B45: =XFD5+XFD8+XFD25+XFD28+XFD35+XFD38 -> 84951 | C45: =XFD5+XFD8+XFD25+XFD28+XFD35+XFD38 -> 120710 | D45: =XFD5+XFD8+XFD25+XFD28+XFD35+XFD38 -> 35759
A46: 转移性支出 | B46: =XFD47+XFD50+XFD51+XFD52 -> 5429 | C46: =XFD47+XFD50+XFD51+XFD52 -> 59062 | D46: =XFD47+XFD50+XFD51+XFD52 -> 53633
A47: 政府性基金转移支付 | B47: 5429 | C47: 5429
A48: 政府性基金补助支出 | C48: 0
A49: 政府性基金上解支出 | B49: 5429 | C49: 5429
A50: 调出资金 | C50: 0
A51: 结转下年 | C51: 12792 | D51: 12792
A52: 债务转贷支出 | C52: 40841 | D52: 40841
A53: 国有土地使用权出让金债务转贷支出 | C53: 40841 | D53: 40841
A54: 支出总计 | B54: =XFD45+XFD46 -> 90380 | C54: =XFD45+XFD46 -> 179772 | D54: =XFD45+XFD46 -> 89392
A55: —20—
